[Event "Betsys MČR v online bleskovém šachu 2021"]
[Site "Chess.com"]
[Date "2021.04.17"]
[Round "10"]
[White "Toman_26"]
[Black "dzerenyss"]
[Result "1-0"]
[WhiteElo "990"]
[BlackElo "986"]
[TimeControl "180+1"]
[EndTime "10:40:54 PDT"]
[Termination "Uživatel Toman_26 zvítězil matem"]

1. e4 {[%clk 0:03:00.9]} 1... c5 {[%clk 0:02:58.9]} 2. d3 {[%clk 0:03:00.2]}
2... d6 {[%clk 0:02:57.7]} 3. Nd2 {[%clk 0:03:00.5]} 3... Nf6 {[%clk 0:02:54.1]}
4. g3 {[%clk 0:03:00.9]} 4... Nc6 {[%clk 0:02:53.5]} 5. Bg2 {[%clk 0:03:01.4]}
5... e6 {[%clk 0:02:52.5]} 6. Ngf3 {[%clk 0:03:01.8]} 6... Be7 {[%clk
0:02:52.2]} 7. O-O {[%clk 0:03:02.3]} 7... O-O {[%clk 0:02:51.6]} 8. Re1 {[%clk
0:02:59.9]} 8... Bd7 {[%clk 0:02:47.1]} 9. Nf1 {[%clk 0:02:57.7]} 9... d5 {[%clk
0:02:37.9]} 10. e5 {[%clk 0:02:56.9]} 10... Ng4 {[%clk 0:02:32.8]} 11. h3 {[%clk
0:02:47.3]} 11... Nh6 {[%clk 0:02:20.3]} 12. N1h2 {[%clk 0:02:32.5]} 12... Qc7
{[%clk 0:02:17.6]} 13. Bf4 {[%clk 0:02:28.2]} 13... Nf5 {[%clk 0:02:09.7]} 14.
g4 {[%clk 0:02:16.4]} 14... Nfd4 {[%clk 0:02:05.8]} 15. Nxd4 {[%clk 0:02:15.1]}
15... Nxd4 {[%clk 0:02:02.8]} 16. Bg3 {[%clk 0:02:13.9]} 16... Bg5 {[%clk
0:01:56.3]} 17. f4 {[%clk 0:02:13.5]} 17... Be7 {[%clk 0:01:45.5]} 18. Nf3
{[%clk 0:02:13.2]} 18... Nxf3+ {[%clk 0:01:43.9]} 19. Bxf3 {[%clk 0:02:14.1]}
19... Qb6 {[%clk 0:01:39]} 20. b3 {[%clk 0:02:07.2]} 20... c4+ {[%clk
0:01:36.9]} 21. Bf2 {[%clk 0:02:02]} 21... Bc5 {[%clk 0:01:28.8]} 22. Bxc5
{[%clk 0:02:01.2]} 22... Qxc5+ {[%clk 0:01:28.1]} 23. Kh2 {[%clk 0:02:01.2]}
23... cxd3 {[%clk 0:01:23.8]} 24. Qxd3 {[%clk 0:01:56.9]} 24... Rac8 {[%clk
0:01:20.8]} 25. c4 {[%clk 0:01:51]} 25... Rfd8 {[%clk 0:01:09]} 26. cxd5 {[%clk
0:01:45.6]} 26... exd5 {[%clk 0:01:05.9]} 27. Qxd5 {[%clk 0:01:36.4]} 27... Qc2+
{[%clk 0:00:58.2]} 28. Re2 {[%clk 0:01:28.3]} 28... Qc3 {[%clk 0:00:53.2]} 29.
Qxb7 {[%clk 0:01:15.6]} 29... Qxa1 {[%clk 0:00:48.6]} 30. Qxa7 {[%clk
0:01:07.7]} 30... Rc1 {[%clk 0:00:46]} 31. a4 {[%clk 0:01:01.2]} 31... Bxg4
{[%clk 0:00:32.1]} 32. Bxg4 {[%clk 0:00:49.7]} 32... f5 {[%clk 0:00:24.7]} 33.
Bxf5 {[%clk 0:00:43.5]} 33... Rdd1 {[%clk 0:00:18.9]} 34. Qb8+ {[%clk
0:00:39.1]} 34... Kf7 {[%clk 0:00:16.3]} 35. e6+ {[%clk 0:00:38]} 35... Ke7
{[%clk 0:00:14]} 36. Qb7+ {[%clk 0:00:33]} 36... Kd6 {[%clk 0:00:12]} 37. Qd7+
{[%clk 0:00:28.2]} 37... Kc5 {[%clk 0:00:10.4]} 38. Qb5+ {[%clk 0:00:27.2]}
38... Kd4 {[%clk 0:00:09.2]} 39. e7 {[%clk 0:00:23.8]} 39... Rh1+ {[%clk
0:00:07.6]} 40. Kg3 {[%clk 0:00:24.1]} 40... Rcg1+ {[%clk 0:00:06.4]} 41. Kh4
{[%clk 0:00:23.4]} 41... Qc3 {[%clk 0:00:03.3]} 42. Re4# {[%clk 0:00:20.5]} 1-0

[Event "Betsys MČR v online bleskovém šachu 2021"]
[Site "Chess.com"]
[Date "2021.04.17"]
[Round "10"]
[White "jachym08"]
[Black "HCMotorCB"]
[Result "0-1"]
[WhiteElo "2245"]
[BlackElo "2391"]
[TimeControl "180+1"]
[EndTime "10:40:55 PDT"]
[Termination "Uživatel HCMotorCB zvítězil po vzdání soupeře"]

1. d4 {[%clk 0:03:00.9]} 1... d5 {[%clk 0:02:59.2]} 2. c4 {[%clk 0:02:58.9]}
2... c6 {[%clk 0:02:59.5]} 3. Nc3 {[%clk 0:02:57.5]} 3... Nf6 {[%clk 0:02:59.4]}
4. Nf3 {[%clk 0:02:53.4]} 4... e6 {[%clk 0:02:59.1]} 5. e3 {[%clk 0:02:52.6]}
5... Nbd7 {[%clk 0:02:58.7]} 6. Qc2 {[%clk 0:02:50]} 6... Bd6 {[%clk 0:02:58.3]}
7. b3 {[%clk 0:02:46.4]} 7... O-O {[%clk 0:02:56.1]} 8. Be2 {[%clk 0:02:46]}
8... Qe7 {[%clk 0:02:54]} 9. Bb2 {[%clk 0:02:39.5]} 9... e5 {[%clk 0:02:33.9]}
10. cxd5 {[%clk 0:02:23.6]} 10... Nxd5 {[%clk 0:02:32.3]} 11. Nxd5 {[%clk
0:02:19.7]} 11... cxd5 {[%clk 0:02:31.6]} 12. dxe5 {[%clk 0:02:12.9]} 12... Nxe5
{[%clk 0:02:31.5]} 13. O-O {[%clk 0:02:11.5]} 13... Ng6 {[%clk 0:02:07.5]} 14.
Rfd1 {[%clk 0:02:04.8]} 14... Be6 {[%clk 0:02:06.5]} 15. Qc3 {[%clk 0:02:01.7]}
15... f6 {[%clk 0:02:06.3]} 16. Rac1 {[%clk 0:01:57]} 16... Rac8 {[%clk
0:02:05.4]} 17. Qa5 {[%clk 0:01:52.2]} 17... b6 {[%clk 0:02:05.3]} 18. Qd2
{[%clk 0:01:50.3]} 18... Bb4 {[%clk 0:01:57.7]} 19. Qd3 {[%clk 0:01:49]} 19...
Bc5 {[%clk 0:01:50.5]} 20. Bf1 {[%clk 0:01:36.8]} 20... Rfd8 {[%clk 0:01:48.5]}
21. Nd4 {[%clk 0:01:22.3]} 21... Ne5 {[%clk 0:01:42.5]} 22. Qa6 {[%clk
0:01:19.4]} 22... Bg4 {[%clk 0:01:34.8]} 23. Be2 {[%clk 0:01:12.8]} 23... Bxd4
{[%clk 0:01:27.7]} 24. Bxd4 {[%clk 0:01:09.8]} 24... Rxc1 {[%clk 0:01:25.1]} 25.
Rxc1 {[%clk 0:01:09.5]} 25... Bxe2 {[%clk 0:01:24.1]} 26. Qxe2 {[%clk
0:01:10.4]} 26... Qd7 {[%clk 0:01:20.3]} 27. Qc2 {[%clk 0:01:05.7]} 27... h6
{[%clk 0:00:50.9]} 28. Qc7 {[%clk 0:01:01.8]} 28... Nd3 {[%clk 0:00:43.7]} 29.
Rc3 {[%clk 0:00:52.3]} 29... Nb4 {[%clk 0:00:30.5]} 30. a3 {[%clk 0:00:45.7]}
30... Na6 {[%clk 0:00:27.7]} 31. Qxd7 {[%clk 0:00:42.4]} 31... Rxd7 {[%clk
0:00:27.4]} 32. Rc8+ {[%clk 0:00:42.9]} 32... Kf7 {[%clk 0:00:27]} 33. b4 {[%clk
0:00:37.2]} 33... Rc7 {[%clk 0:00:26.3]} 34. Rxc7+ {[%clk 0:00:36.3]} 34... Nxc7
{[%clk 0:00:27.2]} 35. a4 {[%clk 0:00:36.4]} 35... Ke6 {[%clk 0:00:24.7]} 36. f3
{[%clk 0:00:31.3]} 36... Kd6 {[%clk 0:00:23.2]} 37. Kf2 {[%clk 0:00:30.7]} 37...
Kc6 {[%clk 0:00:23.2]} 38. Ke2 {[%clk 0:00:28.1]} 38... Ne6 {[%clk 0:00:22.9]}
39. Bb2 {[%clk 0:00:25.6]} 39... a5 {[%clk 0:00:23]} 40. b5+ {[%clk 0:00:22.8]}
40... Kc5 {[%clk 0:00:21.8]} 41. Kd3 {[%clk 0:00:22.9]} 41... Kb4 {[%clk
0:00:21.1]} 42. Bd4 {[%clk 0:00:19.9]} 42... Nxd4 {[%clk 0:00:19.2]} 43. Kxd4
{[%clk 0:00:20.4]} 43... Kxa4 {[%clk 0:00:19.5]} 44. Kxd5 {[%clk 0:00:21.3]}
44... Kxb5 {[%clk 0:00:19.8]} 45. e4 {[%clk 0:00:22.2]} 45... a4 {[%clk
0:00:19.8]} 46. f4 {[%clk 0:00:22.5]} 46... a3 {[%clk 0:00:20]} 47. e5 {[%clk
0:00:23.4]} 47... fxe5 {[%clk 0:00:19.9]} 48. fxe5 {[%clk 0:00:23.2]} 48... a2
{[%clk 0:00:20.3]} 49. e6 {[%clk 0:00:24.1]} 49... a1=Q {[%clk 0:00:20.6]} 50.
e7 {[%clk 0:00:25]} 50... Qd1+ {[%clk 0:00:18.7]} 51. Ke6 {[%clk 0:00:25]} 51...
Qe2+ {[%clk 0:00:18.7]} 0-1

[Event "Betsys MČR v online bleskovém šachu 2021"]
[Site "Chess.com"]
[Date "2021.04.17"]
[Round "10"]
[White "Jakuboss22005"]
[Black "fortale"]
[Result "1-0"]
[WhiteElo "2083"]
[BlackElo "2299"]
[TimeControl "180+1"]
[EndTime "10:40:55 PDT"]
[Termination "Uživatel Jakuboss22005 zvítězil po vzdání soupeře"]

1. b3 {[%clk 0:03:00.9]} 1... Nf6 {[%clk 0:02:58.1]} 2. Bb2 {[%clk 0:03:01.1]}
2... g6 {[%clk 0:02:57.9]} 3. Nf3 {[%clk 0:03:00]} 3... Bg7 {[%clk 0:02:58]} 4.
g3 {[%clk 0:03:00.3]} 4... d6 {[%clk 0:02:58.5]} 5. Bg2 {[%clk 0:03:00.3]} 5...
O-O {[%clk 0:02:59.1]} 6. O-O {[%clk 0:03:00.4]} 6... c6 {[%clk 0:02:59.2]} 7.
c4 {[%clk 0:03:00.5]} 7... Qa5 {[%clk 0:02:58.2]} 8. d3 {[%clk 0:02:52.8]} 8...
Qh5 {[%clk 0:02:57.7]} 9. Nbd2 {[%clk 0:02:47.3]} 9... Bh3 {[%clk 0:02:57.3]}
10. e3 {[%clk 0:02:44.2]} 10... Nbd7 {[%clk 0:02:52.6]} 11. Nh4 {[%clk
0:02:40.4]} 11... Qxd1 {[%clk 0:02:50.6]} 12. Raxd1 {[%clk 0:02:38.8]} 12...
Bxg2 {[%clk 0:02:50.9]} 13. Nxg2 {[%clk 0:02:34.2]} 13... a5 {[%clk 0:02:51.3]}
14. a3 {[%clk 0:02:33.7]} 14... Nc5 {[%clk 0:02:49.2]} 15. d4 {[%clk 0:02:20.5]}
15... Nce4 {[%clk 0:02:47.1]} 16. Nxe4 {[%clk 0:02:20.8]} 16... Nxe4 {[%clk
0:02:48]} 17. f3 {[%clk 0:02:17.9]} 17... Ng5 {[%clk 0:02:46.4]} 18. Kf2 {[%clk
0:02:09.4]} 18... Rfc8 {[%clk 0:02:30]} 19. Nf4 {[%clk 0:02:05.4]} 19... b5
{[%clk 0:02:17.4]} 20. cxb5 {[%clk 0:02:01.2]} 20... cxb5 {[%clk 0:02:15.9]} 21.
Rc1 {[%clk 0:02:01]} 21... Kf8 {[%clk 0:01:48.9]} 22. Nd5 {[%clk 0:01:55.6]}
22... Rab8 {[%clk 0:01:43.3]} 23. Nf4 {[%clk 0:01:45.9]} 23... Ke8 {[%clk
0:01:38]} 24. h4 {[%clk 0:01:44.1]} 24... Ne6 {[%clk 0:01:37.7]} 25. Nxe6 {[%clk
0:01:43.8]} 25... fxe6 {[%clk 0:01:37.9]} 26. Ke2 {[%clk 0:01:43.1]} 26... Kd7
{[%clk 0:01:37.3]} 27. Kd3 {[%clk 0:01:43.1]} 27... Rxc1 {[%clk 0:01:33.8]} 28.
Rxc1 {[%clk 0:01:42.6]} 28... Rf8 {[%clk 0:01:34.2]} 29. Ke2 {[%clk 0:01:34.7]}
29... h6 {[%clk 0:01:31.1]} 30. Rh1 {[%clk 0:01:33.2]} 30... Rc8 {[%clk
0:01:28.7]} 31. Rc1 {[%clk 0:01:32.9]} 31... Rxc1 {[%clk 0:00:50.3]} 32. Bxc1
{[%clk 0:01:33.8]} 32... Kc6 {[%clk 0:00:50.2]} 33. Bd2 {[%clk 0:01:30.3]} 33...
a4 {[%clk 0:00:50]} 34. bxa4 {[%clk 0:01:21.4]} 34... bxa4 {[%clk 0:00:49.8]}
35. Kd3 {[%clk 0:01:21.6]} 35... Kb5 {[%clk 0:00:43.4]} 36. Bc3 {[%clk 0:01:19]}
36... Bf6 {[%clk 0:00:33.5]} 37. Bb2 {[%clk 0:01:16.6]} 37... g5 {[%clk
0:00:26.1]} 38. h5 {[%clk 0:01:13.7]} 38... Bg7 {[%clk 0:00:26.3]} 39. g4 {[%clk
0:01:14]} 39... Bf6 {[%clk 0:00:25.7]} 40. Bc3 {[%clk 0:01:13.8]} 40... e5
{[%clk 0:00:23.8]} 41. dxe5 {[%clk 0:00:45.5]} 41... Bxe5 {[%clk 0:00:22.2]} 42.
Bxe5 {[%clk 0:00:26.3]} 42... dxe5 {[%clk 0:00:22]} 43. Ke4 {[%clk 0:00:26.8]}
43... Kc4 {[%clk 0:00:21]} 44. Kxe5 {[%clk 0:00:27.2]} 44... Kb3 {[%clk
0:00:21.4]} 45. f4 {[%clk 0:00:27.6]} 45... gxf4 {[%clk 0:00:20.4]} 46. exf4
{[%clk 0:00:27.2]} 46... Kxa3 {[%clk 0:00:20.8]} 47. g5 {[%clk 0:00:27.5]} 47...
hxg5 {[%clk 0:00:20.8]} 48. fxg5 {[%clk 0:00:28.3]} 48... Kb3 {[%clk 0:00:21.2]}
49. g6 {[%clk 0:00:25.5]} 49... a3 {[%clk 0:00:21.6]} 50. g7 {[%clk 0:00:25.4]}
50... a2 {[%clk 0:00:22]} 51. g8=Q+ {[%clk 0:00:25.2]} 51... Kb2 {[%clk
0:00:20.9]} 52. Qxa2+ {[%clk 0:00:25.7]} 52... Kxa2 {[%clk 0:00:20.9]} 53. h6
{[%clk 0:00:26.2]} 1-0

[Event "Betsys MČR v online bleskovém šachu 2021"]
[Site "Chess.com"]
[Date "2021.04.17"]
[Round "10"]
[White "tryskomys"]
[Black "Vitana"]
[Result "1-0"]
[WhiteElo "1581"]
[BlackElo "1719"]
[TimeControl "180+1"]
[EndTime "10:40:56 PDT"]
[Termination "Uživatel tryskomys zvítězil po vzdání soupeře"]

1. e4 {[%clk 0:03:00.9]} 1... e6 {[%clk 0:03:00.9]} 2. d4 {[%clk 0:02:59.7]}
2... d5 {[%clk 0:03:01.8]} 3. e5 {[%clk 0:02:59.3]} 3... c5 {[%clk 0:03:01.7]}
4. c3 {[%clk 0:02:59.3]} 4... Nc6 {[%clk 0:03:02.3]} 5. Nf3 {[%clk 0:02:59.3]}
5... Bd7 {[%clk 0:03:02.5]} 6. Bd3 {[%clk 0:02:58.7]} 6... Qb6 {[%clk
0:03:02.5]} 7. O-O {[%clk 0:02:57.3]} 7... cxd4 {[%clk 0:03:01.9]} 8. cxd4
{[%clk 0:02:56.2]} 8... Nxd4 {[%clk 0:03:01.3]} 9. Nxd4 {[%clk 0:02:55.4]} 9...
Qxd4 {[%clk 0:03:01]} 10. Nc3 {[%clk 0:02:55]} 10... Qxe5 {[%clk 0:02:58.1]} 11.
Re1 {[%clk 0:02:52.8]} 11... Qd6 {[%clk 0:02:50.4]} 12. Nb5 {[%clk 0:02:51.1]}
12... Qb6 {[%clk 0:02:44.8]} 13. Be3 {[%clk 0:02:46.9]} 13... Qd8 {[%clk
0:02:28.6]} 14. Rc1 {[%clk 0:02:38.5]} 14... Rc8 {[%clk 0:02:18.9]} 15. Rxc8
{[%clk 0:02:31.5]} 15... Qxc8 {[%clk 0:02:10.9]} 16. Nxa7 {[%clk 0:02:28.8]}
16... Qa8 {[%clk 0:02:09]} 17. Bb5 {[%clk 0:02:11.3]} 17... Bxb5 {[%clk
0:01:56.5]} 18. Nxb5 {[%clk 0:02:10]} 18... Qd8 {[%clk 0:01:49.3]} 19. Bf4
{[%clk 0:02:05.4]} 19... Be7 {[%clk 0:01:40.4]} 20. Nc7+ {[%clk 0:01:59.9]}
20... Kf8 {[%clk 0:01:39.2]} 21. a4 {[%clk 0:01:48.8]} 21... Nf6 {[%clk
0:01:38.2]} 22. Rxe6 {[%clk 0:01:38.4]} 22... g6 {[%clk 0:01:14.7]} 23. Re1
{[%clk 0:01:20]} 23... Bd6 {[%clk 0:01:07.4]} 24. Bxd6+ {[%clk 0:01:16]} 24...
Qxd6 {[%clk 0:01:06.5]} 25. Nb5 {[%clk 0:01:14.1]} 25... Qb4 {[%clk 0:01:03.1]}
26. h3 {[%clk 0:01:08.7]} 26... Kg7 {[%clk 0:01:02.6]} 27. Nd4 {[%clk
0:00:50.1]} 27... Qxb2 {[%clk 0:00:53.2]} 28. Re7 {[%clk 0:00:37.8]} 28... Ne4
{[%clk 0:00:45.2]} 29. Qf3 {[%clk 0:00:31.9]} 29... Rf8 {[%clk 0:00:43.2]} 30.
Ne6+ {[%clk 0:00:28.6]} 30... Kg8 {[%clk 0:00:35.8]} 31. Nxf8 {[%clk 0:00:28.6]}
31... Qc1+ {[%clk 0:00:27.7]} 32. Kh2 {[%clk 0:00:27.8]} 32... Ng5 {[%clk
0:00:22.1]} 33. Qf6 {[%clk 0:00:21.5]} 33... Kxf8 {[%clk 0:00:20.4]} 34. Rxb7
{[%clk 0:00:17.6]} 34... Qc8 {[%clk 0:00:19.4]} 35. Qe7+ {[%clk 0:00:16.1]}
35... Kg8 {[%clk 0:00:18.5]} 36. Rd7 {[%clk 0:00:16]} 36... h6 {[%clk
0:00:14.7]} 37. Rd8+ {[%clk 0:00:15.1]} 37... Qxd8 {[%clk 0:00:13.7]} 38. Qxd8+
{[%clk 0:00:15.2]} 38... Kg7 {[%clk 0:00:14.6]} 39. Qxd5 {[%clk 0:00:15.2]}
39... Ne4 {[%clk 0:00:15.4]} 40. a5 {[%clk 0:00:14.8]} 40... Nf6 {[%clk
0:00:16.3]} 41. Qe5 {[%clk 0:00:14.1]} 41... g5 {[%clk 0:00:15.7]} 42. a6 {[%clk
0:00:14]} 42... Kg6 {[%clk 0:00:16.6]} 43. Qxf6+ {[%clk 0:00:13.9]} 43... Kxf6
{[%clk 0:00:16.6]} 44. a7 {[%clk 0:00:14.1]} 44... Kg6 {[%clk 0:00:17.3]} 45.
a8=Q {[%clk 0:00:13.6]} 1-0

[Event "Betsys MČR v online bleskovém šachu 2021"]
[Site "Chess.com"]
[Date "2021.04.17"]
[Round "10"]
[White "florenc1330"]
[Black "Loveforever_Pepi"]
[Result "1-0"]
[WhiteElo "2121"]
[BlackElo "2266"]
[TimeControl "180+1"]
[EndTime "10:40:57 PDT"]
[Termination "Uživatel florenc1330 zvítězil na čas"]

1. c4 {[%clk 0:02:58.6]} 1... e6 {[%clk 0:02:59.3]} 2. g3 {[%clk 0:02:58.4]}
2... d5 {[%clk 0:02:59.7]} 3. Bg2 {[%clk 0:02:58.4]} 3... Nf6 {[%clk 0:02:59.1]}
4. Nf3 {[%clk 0:02:58.2]} 4... Be7 {[%clk 0:02:59]} 5. O-O {[%clk 0:02:58.2]}
5... O-O {[%clk 0:02:59]} 6. d3 {[%clk 0:02:58.4]} 6... c5 {[%clk 0:02:57.5]} 7.
Nc3 {[%clk 0:02:57.6]} 7... Nc6 {[%clk 0:02:56.8]} 8. a3 {[%clk 0:02:52.7]} 8...
d4 {[%clk 0:02:55.2]} 9. Ne4 {[%clk 0:02:52]} 9... Nxe4 {[%clk 0:02:54.6]} 10.
dxe4 {[%clk 0:02:52]} 10... a5 {[%clk 0:02:48.7]} 11. Rb1 {[%clk 0:02:49.5]}
11... e5 {[%clk 0:02:48.2]} 12. e3 {[%clk 0:02:48.2]} 12... Be6 {[%clk
0:02:34.8]} 13. b4 {[%clk 0:02:46.2]} 13... Bxc4 {[%clk 0:02:31.8]} 14. bxc5
{[%clk 0:02:35.9]} 14... Bxf1 {[%clk 0:02:28.6]} 15. Qxf1 {[%clk 0:02:35.6]}
15... Bxc5 {[%clk 0:02:27]} 16. exd4 {[%clk 0:02:32.9]} 16... Nxd4 {[%clk
0:02:16.3]} 17. Nxe5 {[%clk 0:02:27.8]} 17... Qe7 {[%clk 0:02:12.3]} 18. Nd3
{[%clk 0:02:20.3]} 18... Bxa3 {[%clk 0:02:10.4]} 19. Be3 {[%clk 0:02:15.9]}
19... Nc6 {[%clk 0:02:03.5]} 20. Nf4 {[%clk 0:02:08.1]} 20... Bb4 {[%clk
0:01:34.3]} 21. Nd5 {[%clk 0:02:06.7]} 21... Qd8 {[%clk 0:01:15.7]} 22. Qb5
{[%clk 0:02:03.6]} 22... Qd7 {[%clk 0:01:03.4]} 23. Nb6 {[%clk 0:01:59.9]} 23...
Qe7 {[%clk 0:01:03.2]} 24. Nxa8 {[%clk 0:01:58.7]} 24... Rxa8 {[%clk 0:01:02.1]}
25. h3 {[%clk 0:01:56]} 25... h6 {[%clk 0:00:59.4]} 26. Qb6 {[%clk 0:01:43.4]}
26... Ra6 {[%clk 0:00:37.7]} 27. Qb5 {[%clk 0:01:40.4]} 27... Qc7 {[%clk
0:00:26.6]} 28. Bf4 {[%clk 0:01:33.9]} 28... Qe7 {[%clk 0:00:19.1]} 29. e5
{[%clk 0:01:30]} 29... Nd4 {[%clk 0:00:12.9]} 30. Qxb7 {[%clk 0:01:24.1]} 30...
Qxb7 {[%clk 0:00:12.5]} 31. Bxb7 {[%clk 0:01:23.2]} 31... Ra7 {[%clk 0:00:11.8]}
32. Bd5 {[%clk 0:01:17]} 32... Ne2+ {[%clk 0:00:09.6]} 33. Kg2 {[%clk
0:01:17.2]} 33... Nxf4+ {[%clk 0:00:09.3]} 34. gxf4 {[%clk 0:01:17.3]} 34... Kf8
{[%clk 0:00:08.9]} 35. f5 {[%clk 0:01:16]} 35... Ke7 {[%clk 0:00:08.9]} 36. Bc6
{[%clk 0:01:10.2]} 36... Bc3 {[%clk 0:00:08.6]} 37. f4 {[%clk 0:01:07.9]} 37...
a4 {[%clk 0:00:07.8]} 38. Bd5 {[%clk 0:01:02]} 38... a3 {[%clk 0:00:07.2]} 39.
Ba2 {[%clk 0:01:00.5]} 39... Bb2 {[%clk 0:00:06.5]} 40. Kf3 {[%clk 0:00:57]}
40... Rc7 {[%clk 0:00:06.8]} 41. Ke4 {[%clk 0:00:56]} 41... Rc3 {[%clk
0:00:06.7]} 42. Rd1 {[%clk 0:00:53.5]} 42... Rxh3 {[%clk 0:00:05.7]} 43. f6+
{[%clk 0:00:50.2]} 43... gxf6 {[%clk 0:00:05.4]} 44. exf6+ {[%clk 0:00:50.4]}
44... Bxf6 {[%clk 0:00:05.9]} 45. Rc1 {[%clk 0:00:48]} 45... Rh2 {[%clk
0:00:05.5]} 46. Rc7+ {[%clk 0:00:47.3]} 46... Kd8 {[%clk 0:00:04.1]} 47. Rxf7
{[%clk 0:00:46.6]} 47... Rxa2 {[%clk 0:00:03.3]} 48. Rxf6 {[%clk 0:00:46.5]}
48... Re2+ {[%clk 0:00:02.6]} 49. Kf5 {[%clk 0:00:46.1]} 49... a2 {[%clk
0:00:02.3]} 50. Ra6 {[%clk 0:00:45.3]} 50... Ke7 {[%clk 0:00:01.2]} 51. Kg6
{[%clk 0:00:43.6]} 1-0

[Event "Betsys MČR v online bleskovém šachu 2021"]
[Site "Chess.com"]
[Date "2021.04.17"]
[Round "10"]
[White "Clockwork7orange"]
[Black "kecalk"]
[Result "1-0"]
[WhiteElo "2322"]
[BlackElo "2140"]
[TimeControl "180+1"]
[EndTime "10:41:00 PDT"]
[Termination "Uživatel Clockwork7orange zvítězil na čas"]

1. Nc3 {[%clk 0:03:00.9]} 1... e5 {[%clk 0:02:59]} 2. e4 {[%clk 0:03:01.8]} 2...
Nf6 {[%clk 0:02:58.1]} 3. Nf3 {[%clk 0:03:02]} 3... Nc6 {[%clk 0:02:55.2]} 4. a3
{[%clk 0:03:02.6]} 4... d5 {[%clk 0:02:54.3]} 5. Bb5 {[%clk 0:02:56]} 5... d4
{[%clk 0:02:51.4]} 6. Ne2 {[%clk 0:02:55.1]} 6... Nxe4 {[%clk 0:02:50.4]} 7. O-O
{[%clk 0:02:43.2]} 7... Bd6 {[%clk 0:02:48]} 8. Bxc6+ {[%clk 0:02:31.3]} 8...
bxc6 {[%clk 0:02:45.7]} 9. Nexd4 {[%clk 0:02:31.4]} 9... O-O {[%clk 0:02:06.1]}
10. Nxc6 {[%clk 0:02:20.3]} 10... Qe8 {[%clk 0:01:57.6]} 11. Nb4 {[%clk
0:02:15.9]} 11... Bg4 {[%clk 0:01:55.7]} 12. h3 {[%clk 0:02:12.5]} 12... Bh5
{[%clk 0:01:55.5]} 13. d3 {[%clk 0:02:09.8]} 13... Nc5 {[%clk 0:01:45.5]} 14.
Re1 {[%clk 0:02:01.3]} 14... a5 {[%clk 0:01:38.1]} 15. Na2 {[%clk 0:01:58.2]}
15... Ne6 {[%clk 0:01:23]} 16. g4 {[%clk 0:01:51.5]} 16... Bg6 {[%clk
0:01:22.9]} 17. Nxe5 {[%clk 0:01:51.4]} 17... f5 {[%clk 0:01:13]} 18. Nxg6
{[%clk 0:01:43.6]} 18... Qxg6 {[%clk 0:01:10.1]} 19. Nc3 {[%clk 0:01:32.7]}
19... h5 {[%clk 0:00:52.7]} 20. g5 {[%clk 0:01:13.9]} 20... Nxg5 {[%clk
0:00:50.4]} 21. Bxg5 {[%clk 0:01:13.5]} 21... Qxg5+ {[%clk 0:00:50.4]} 22. Kf1
{[%clk 0:01:13.5]} 22... Rae8 {[%clk 0:00:49.1]} 23. Rxe8 {[%clk 0:01:01.5]}
23... Rxe8 {[%clk 0:00:44]} 24. Qf3 {[%clk 0:00:56.9]} 24... Bh2 {[%clk
0:00:31.5]} 25. Qg2 {[%clk 0:00:46.6]} 25... Qd2 {[%clk 0:00:29]} 26. Qxh2
{[%clk 0:00:43.9]} 26... Qxc2 {[%clk 0:00:29.3]} 27. Qxc7 {[%clk 0:00:30.1]}
27... Qxd3+ {[%clk 0:00:28.3]} 28. Kg1 {[%clk 0:00:29.8]} 28... Re6 {[%clk
0:00:25.2]} 29. Kh2 {[%clk 0:00:25.1]} 29... Qf3 {[%clk 0:00:18.1]} 30. Rg1
{[%clk 0:00:19.9]} 30... g6 {[%clk 0:00:17]} 31. Qc8+ {[%clk 0:00:16.9]} 31...
Kf7 {[%clk 0:00:17.4]} 32. Qd7+ {[%clk 0:00:16.6]} 32... Kf6 {[%clk 0:00:10]}
33. Qd4+ {[%clk 0:00:16.2]} 33... Kf7 {[%clk 0:00:07.7]} 34. Rg3 {[%clk
0:00:17]} 34... Qc6 {[%clk 0:00:05.5]} 35. Re3 {[%clk 0:00:13.8]} 35... Rxe3
{[%clk 0:00:02.8]} 36. Qxe3 {[%clk 0:00:12.9]} 1-0

[Event "Betsys MČR v online bleskovém šachu 2021"]
[Site "Chess.com"]
[Date "2021.04.17"]
[Round "10"]
[White "HonzaRubes95"]
[Black "Mikulas19"]
[Result "1-0"]
[WhiteElo "2462"]
[BlackElo "1896"]
[TimeControl "180+1"]
[EndTime "10:41:00 PDT"]
[Termination "Uživatel HonzaRubes95 zvítězil na čas"]

1. e4 {[%clk 0:03:00.9]} 1... e5 {[%clk 0:02:56.8]} 2. Nf3 {[%clk 0:03:00]} 2...
Nf6 {[%clk 0:02:56.8]} 3. Nc3 {[%clk 0:02:57.2]} 3... Nc6 {[%clk 0:02:56.3]} 4.
Bb5 {[%clk 0:02:57.1]} 4... Bb4 {[%clk 0:02:53.5]} 5. O-O {[%clk 0:02:56.1]}
5... d6 {[%clk 0:02:53.2]} 6. d3 {[%clk 0:02:50]} 6... O-O {[%clk 0:02:51.5]} 7.
Ne2 {[%clk 0:02:49.2]} 7... h6 {[%clk 0:02:48.6]} 8. c3 {[%clk 0:02:47.6]} 8...
Bc5 {[%clk 0:02:47.3]} 9. Ng3 {[%clk 0:02:45.8]} 9... Bd7 {[%clk 0:02:44.7]} 10.
h3 {[%clk 0:02:44.8]} 10... Ne7 {[%clk 0:02:44.2]} 11. Bc4 {[%clk 0:02:43.4]}
11... c6 {[%clk 0:02:40.7]} 12. d4 {[%clk 0:02:42.6]} 12... exd4 {[%clk
0:02:38.6]} 13. cxd4 {[%clk 0:02:42.8]} 13... Bb6 {[%clk 0:02:38.5]} 14. Bd3
{[%clk 0:02:33.4]} 14... Ng6 {[%clk 0:02:14.8]} 15. Re1 {[%clk 0:02:23]} 15...
Re8 {[%clk 0:02:06.8]} 16. Qb3 {[%clk 0:02:20.1]} 16... Qc7 {[%clk 0:02:03]} 17.
e5 {[%clk 0:02:19.4]} 17... dxe5 {[%clk 0:02:00.4]} 18. Bxg6 {[%clk 0:02:17.7]}
18... Be6 {[%clk 0:01:58.2]} 19. Qc2 {[%clk 0:02:17.9]} 19... fxg6 {[%clk
0:01:56.1]} 20. dxe5 {[%clk 0:02:17.6]} 20... Bd5 {[%clk 0:01:28]} 21. Qxg6
{[%clk 0:02:08.7]} 21... Bxf3 {[%clk 0:01:20.5]} 22. gxf3 {[%clk 0:02:05]} 22...
Rxe5 {[%clk 0:01:05.6]} 23. Bxh6 {[%clk 0:02:05.1]} 23... Rae8 {[%clk
0:00:53.8]} 24. Rxe5 {[%clk 0:02:00.1]} 24... Rxe5 {[%clk 0:00:53.6]} 25. Bf4
{[%clk 0:01:56.5]} 25... Nd5 {[%clk 0:00:31.8]} 26. Bxe5 {[%clk 0:01:51.1]}
26... Qxe5 {[%clk 0:00:31.5]} 27. Rd1 {[%clk 0:01:14.2]} 27... Qxb2 {[%clk
0:00:22.2]} 28. Ne4 {[%clk 0:01:03.6]} 28... Nf4 {[%clk 0:00:17.5]} 29. Qe8+
{[%clk 0:00:52.9]} 29... Kh7 {[%clk 0:00:16.3]} 30. h4 {[%clk 0:00:41]} 30...
Qe2 {[%clk 0:00:15.4]} 31. Ng5+ {[%clk 0:00:39.7]} 31... Kh6 {[%clk 0:00:10.8]}
32. Qxe2 {[%clk 0:00:37.6]} 32... Nxe2+ {[%clk 0:00:10.1]} 33. Kg2 {[%clk
0:00:36.6]} 33... Nf4+ {[%clk 0:00:08.2]} 34. Kf1 {[%clk 0:00:36.8]} 34... Nd5
{[%clk 0:00:06.7]} 35. Re1 {[%clk 0:00:35.4]} 35... Kh5 {[%clk 0:00:06.4]} 36.
Ne6 {[%clk 0:00:30]} 36... g6 {[%clk 0:00:05.3]} 37. Re4 {[%clk 0:00:26.7]}
37... Nf6 {[%clk 0:00:04.1]} 38. Rb4 {[%clk 0:00:20.6]} 38... Nd5 {[%clk
0:00:03.8]} 39. Ra4 {[%clk 0:00:16.6]} 39... Nf6 {[%clk 0:00:02.4]} 40. Kg2
{[%clk 0:00:15]} 40... Nd5 {[%clk 0:00:02.1]} 41. Nf4+ {[%clk 0:00:13.6]} 41...
Nxf4+ {[%clk 0:00:01.1]} 42. Rxf4 {[%clk 0:00:14.5]} 1-0